bitfinex/quotes_BTCUSD_20240908
["timestamp","ask_amount","ask_price","bid_price","bid_amount"]
[1725814570672,1.8301725,54033.0,54032.0,0.002626]
[1725814570890,1.69182177,54033.0,54032.0,0.002626]
[1725814571111,1.8025012,54033.0,54032.0,0.002626]
[1725814571325,1.69182177,54033.0,54032.0,0.002626]
[1725814571507,1.80249826,54033.0,54032.0,0.002626]
[1725814571955,1.8301725,54033.0,54032.0,0.002626]
[1725814572169,1.80249857,54033.0,54032.0,0.002626]
[1725814572407,1.69182177,54033.0,54032.0,0.002626]
[1725814572618,1.72080958,54033.0,54032.0,0.002626]
[1725814574019,1.91489054,54033.0,54032.0,0.002626]
[1725814574455,1.96435728,54033.0,54032.0,0.002626]
[1725814574914,1.95435728,54033.0,54032.0,0.002626]
[1725814575129,1.95435728,54033.0,54027.0,0.001628]
[1725814575130,1.036497,54028.0,54027.0,0.001628]
[1725814575383,1.52830109,54028.0,54027.0,0.001628]
[1725814575597,1.60345336,54028.0,54027.0,0.001628]
[1725814575854,1.71413267,54028.0,54027.0,0.001628]
[1725814576289,1.60345336,54028.0,54027.0,0.001628]
[1725814576540,1.71413267,54028.0,54027.0,0.001628]
[1725814576981,1.71413267,54028.0,54027.0,0.002628]
[1725814577204,1.74213267,54028.0,54027.0,0.002628]
[1725814578303,1.72813267,54028.0,54027.0,0.001628]
[1725814578725,1.74213267,54028.0,54027.0,0.001628]
[1725814579591,1.63145336,54028.0,54027.0,0.001628]
[1725814580068,1.81353162,54028.0,54027.0,0.001628]
[1725814580328,1.81353162,54028.0,54015.0,0.0626]
[1725814580329,0.069,54024.0,54015.0,0.0626]
[1725814580547,0.53396461,54016.0,54015.0,0.0626]
[1725814580780,0.83017261,54016.0,54015.0,0.0626]
[1725814581009,1.14938061,54016.0,54015.0,0.0626]
[1725814581694,1.24938061,54016.0,54015.0,0.0636]
[1725814582179,1.26098641,54016.0,54015.0,0.0636]
[1725814582626,1.26098641,54016.0,54015.0,0.0626]
[1725814582831,1.27098641,54016.0,54015.0,0.0626]
[1725814583552,0.148112,54013.0,54012.0,0.001628]
[1725814583762,0.53398861,54013.0,54012.0,0.001628]
[1725814583985,1.14943661,54013.0,54012.0,0.001628]
[1725814584756,1.24943661,54013.0,54012.0,0.001628]
[1725814584938,1.25643661,54013.0,54012.0,0.001628]
[1725814585613,1.24943661,54013.0,54012.0,0.001628]
[1725814586085,1.26343661,54013.0,54012.0,0.001628]
[1725814587050,1.27743661,54013.0,54012.0,0.001628]
[1725814587486,1.26343661,54013.0,54012.0,0.001628]
[1725814587908,1.27643661,54013.0,54012.0,0.001628]
[1725814588335,1.26243661,54013.0,54012.0,0.001628]
[1725814588801,1.27643661,54013.0,54012.0,0.001628]
[1725814589021,1.24943661,54013.0,54012.0,0.001628]
[1725814589245,1.26043661,54013.0,54012.0,0.001628]
[1725814589475,1.27343661,54013.0,54012.0,0.001628]
[1725814589687,1.27343661,54013.0,54012.0,0.156128]
[1725814589688,0.272112,54013.0,54012.0,0.156128]
[1725814590340,0.259112,54013.0,54012.0,0.156128]
[1725814590579,0.555336,54013.0,54012.0,0.156128]
[1725814590790,0.566336,54013.0,54012.0,0.156128]
[1725814591242,0.566336,54013.0,54012.0,0.146128]
[1725814591243,0.86256,54013.0,54012.0,0.146128]
[1725814591487,0.87456,54013.0,54012.0,0.146128]
[1725814591687,0.88456,54013.0,54012.0,0.146128]
[1725814595572,0.86356,54013.0,54012.0,0.146128]
[1725814595821,0.88456,54013.0,54012.0,0.146128]
[1725814596060,0.88456,54013.0,54012.0,0.001628]
[1725814596264,1.170784,54013.0,54012.0,0.001628]
[1725814596484,1.21920105,54013.0,54012.0,0.001628]
[1725814596697,1.169784,54013.0,54012.0,0.001628]
[1725814597110,1.163784,54013.0,54012.0,0.001628]
[1725814597352,1.24690503,54013.0,54012.0,0.001628]
[1725814597573,1.163784,54013.0,54012.0,0.001628]
[1725814597780,1.24691743,54013.0,54012.0,0.001628]
[1725814598213,1.24291743,54013.0,54012.0,0.001628]
[1725814598423,1.159784,54013.0,54012.0,0.001628]
[1725814598631,1.173784,54013.0,54012.0,0.002628]
[1725814598857,1.159784,54013.0,54012.0,0.001628]
[1725814599071,1.173784,54013.0,54012.0,0.001628]
[1725814599297,1.187784,54013.0,54012.0,0.002628]
[1725814599522,1.22626665,54013.0,54012.0,0.002628]
[1725814599976,1.24026665,54013.0,54012.0,0.002628]
[1725814600190,1.35111751,54013.0,54012.0,0.002628]
[1725814602207,1.24026665,54013.0,54012.0,0.002628]
[1725814602659,1.55905537,54013.0,54012.0,0.002628]
[1725814602870,1.42049179,54013.0,54012.0,0.002628]
[1725814605647,1.24026665,54013.0,54012.0,0.002628]
[1725814605888,1.24026665,54013.0,54012.0,0.064528]
[1725814606106,1.54649065,54013.0,54012.0,0.002628]
[1725814606324,1.88853183,54013.0,54012.0,0.002628]
[1725814606535,1.72225554,54013.0,54012.0,0.002628]
[1725814607011,1.88864012,54013.0,54012.0,0.002628]
[1725814607237,1.88745208,54013.0,54012.0,0.002628]
[1725814607461,1.72107966,54013.0,54012.0,0.002628]
[1725814610533,1.72107966,54013.0,54012.0,0.064528]
[1725814610740,1.74183761,54013.0,54012.0,0.064528]
[1725814611379,1.74183761,54013.0,54012.0,0.002628]
[1725814613117,1.57548812,54013.0,54012.0,0.002628]
[1725814613320,1.74183761,54013.0,54012.0,0.002628]
[1725814614012,1.76061019,54013.0,54012.0,0.002628]
[1725814618206,1.90711081,54013.0,54012.0,0.002628]
[1725814618876,1.90861458,54013.0,54012.0,0.002628]
[1725814619349,1.74218699,54013.0,54012.0,0.002628]
[1725814620515,1.72818699,54013.0,54012.0,0.002628]
[1725814620747,1.8318396,54013.0,54012.0,0.002628]
[1725814620981,1.8178396,54013.0,54012.0,0.001628]
[1725814621989,1.8318396,54013.0,54012.0,0.001628]
[1725814622426,1.86659113,54013.0,54012.0,0.001628]
[1725814622656,1.99669661,54013.0,54012.0,0.001628]
[1725814623134,2.01069661,54013.0,54012.0,0.001628]
[1725814623589,1.99669661,54013.0,54012.0,0.001628]
[1725814623827,2.01069661,54013.0,54012.0,0.001628]
[1725814624084,1.82571354,54013.0,54012.0,0.001628]
[1725814624510,1.79771354,54013.0,54012.0,0.001628]
[1725814624512,1.81171354,54013.0,54012.0,0.001628]
[1725814625093,1.82571354,54013.0,54012.0,0.001628]
[1725814626458,1.83571354,54013.0,54012.0,0.001628]
[1725814629200,2.0230324,54013.0,54012.0,0.001628]
[1725814631592,2.0230324,54013.0,54012.0,0.142628]
[1725814631827,1.43983693,54013.0,54012.0,0.142628]
[1725814632042,1.53352851,54013.0,54012.0,0.142628]
[1725814632896,1.50552851,54013.0,54012.0,0.142628]
[1725814633101,1.51952851,54013.0,54012.0,0.142628]
[1725814633324,1.53352851,54013.0,54012.0,0.142628]
[1725814633544,1.51952851,54013.0,54012.0,0.142628]
[1725814633763,1.50552851,54013.0,54012.0,0.142628]
[1725814634205,1.51952851,54013.0,54012.0,0.142628]
[1725814635510,1.53352851,54013.0,54012.0,0.142628]
[1725814635716,1.51952851,54013.0,54012.0,0.142628]
[1725814636010,1.53352851,54013.0,54012.0,0.142628]
[1725814636219,1.50552851,54013.0,54012.0,0.142628]
[1725814636441,1.51952851,54013.0,54012.0,0.142628]
[1725814636670,1.53352851,54013.0,54012.0,0.142628]
[1725814636892,1.53902295,54013.0,54012.0,0.142628]
[1725814637438,1.52502295,54013.0,54012.0,0.142628]
[1725814637657,1.51102295,54013.0,54012.0,0.142628]
[1725814637869,1.52502295,54013.0,54012.0,0.142628]
[1725814638094,1.53902295,54013.0,54012.0,0.142628]
[1725814638307,1.52502295,54013.0,54012.0,0.142628]
[1725814638730,1.53902295,54013.0,54012.0,0.142628]
[1725814639163,0.24048719,54013.0,54012.0,0.302743]
[1725814639403,0.028,54013.0,54012.0,0.895203]
[1725814639859,0.028,54013.0,54012.0,0.99002528]
[1725814640045,0.000815,54016.0,54012.0,0.99002528]
[1725814640046,0.000815,54016.0,54015.0,1.190849]
[1725814640255,0.000815,54016.0,54015.0,1.28567128]
[1725814641716,0.001815,54016.0,54015.0,0.99145728]
[1725814641916,0.001815,54016.0,54015.0,0.69524328]
[1725814642127,0.001815,54016.0,54015.0,0.600421]
[1725814642331,0.001815,54016.0,54015.0,0.304207]
[1725814642588,0.001815,54016.0,54015.0,0.302207]
[1725814642589,0.000815,54016.0,54015.0,0.302207]
[1725814642789,0.001815,54016.0,54015.0,0.305207]
[1725814643007,0.001815,54016.0,54015.0,0.1571]
[1725814643445,0.001815,54016.0,54015.0,0.1471]
[1725814643692,0.150919,54016.0,54015.0,0.1631]
[1725814644092,0.148919,54016.0,54015.0,0.1441]
[1725814644318,0.148919,54016.0,54015.0,0.1471]
[1725814644319,0.741335,54016.0,54015.0,0.1471]
[1725814644528,0.842335,54016.0,54015.0,0.1571]
[1725814644746,0.546127,54016.0,54015.0,0.1521]
[1725814644970,0.550127,54016.0,54015.0,0.1421]
[1725814645175,0.557127,54016.0,54015.0,0.1431]
[1725814645601,0.557127,54016.0,54015.0,0.1531]
[1725814645802,0.552127,54016.0,54015.0,0.1531]
[1725814646447,0.552127,54016.0,54015.0,0.1521]
[1725814646668,0.545127,54016.0,54015.0,0.1521]
[1725814646909,0.545127,54016.0,54015.0,0.1531]
[1725814647833,0.853335,54016.0,54015.0,0.1541]
[1725814648058,0.545127,54016.0,54015.0,0.1531]
[1725814648283,0.545127,54016.0,54015.0,0.1541]
[1725814648284,0.553127,54016.0,54015.0,0.1541]
[1725814649155,0.849335,54016.0,54015.0,0.1541]
[1725814654530,0.52168435,54016.0,54015.0,0.1541]
[1725814654744,0.81789235,54016.0,54015.0,0.1541]
[1725814656019,0.52168435,54016.0,54015.0,0.1541]
[1725814656486,0.81789235,54016.0,54015.0,0.1541]
[1725814657805,0.81870735,54016.0,54015.0,0.1541]
[1725814659690,0.56808928,54016.0,54015.0,0.1541]
[1725814659889,0.41998528,54016.0,54015.0,0.1541]
[1725814660304,0.71619328,54016.0,54015.0,0.1541]
[1725814660948,0.41998528,54016.0,54015.0,0.1541]
[1725814661370,0.71619328,54016.0,54015.0,0.1541]
[1725814661798,0.81619328,54016.0,54015.0,0.1541]
[1725814662004,0.51998528,54016.0,54015.0,0.1541]
[1725814662203,0.90596165,54016.0,54015.0,0.1541]
[1725814662646,0.90596165,54016.0,54015.0,0.1441]
[1725814662862,0.92896165,54016.0,54015.0,0.1441]
[1725814665694,0.60975365,54016.0,54015.0,0.1541]
[1725814667737,0.60975365,54016.0,54015.0,0.1561]
[1725814668439,0.63489537,54016.0,54015.0,0.1561]
[1725814670261,0.248919,54016.0,54015.0,0.15773]
[1725814672140,0.248919,54016.0,54015.0,0.15673]
[1725814672375,0.250919,54016.0,54015.0,0.15573]
[1725814673289,0.257919,54016.0,54015.0,0.15673]
[1725814673543,0.250919,54016.0,54015.0,0.15573]
[1725814674019,0.254919,54016.0,54015.0,0.15573]
[1725814674466,0.106815,54016.0,54015.0,0.15573]
[1725814674692,0.006815,54016.0,54015.0,0.15573]
[1725814675384,0.09658337,54016.0,54015.0,0.15573]
[1725814675618,0.19658337,54016.0,54015.0,0.15573]
[1725814677027,0.006815,54016.0,54015.0,0.98987365]
[1725814677259,0.006815,54016.0,54015.0,1.28608765]
[1725814678431,0.006815,54016.0,54015.0,1.63608765]
[1725814678739,0.000815,54016.0,54015.0,1.63608765]
[1725814678919,0.000815,54016.0,54015.0,1.64808765]
[1725814682783,0.000815,54016.0,54015.0,0.26133865]
[1725814683018,0.000815,54016.0,54015.0,0.16773]
[1725814683261,0.445127,54016.0,54015.0,0.16773]
[1725814683738,0.000815,54016.0,54015.0,0.16773]
[1725814684896,0.05629478,54016.0,54015.0,0.16773]
[1725814685389,0.000815,54016.0,54015.0,0.16773]
[1725814686443,0.05629478,54016.0,54015.0,0.16773]
[1725814686674,0.000815,54016.0,54015.0,0.16773]
[1725814686918,0.20439878,54016.0,54015.0,0.16773]
[1725814687420,0.05629478,54016.0,54015.0,0.16773]
[1725814687645,0.05629478,54016.0,54015.0,0.16073]
[1725814687908,0.05729478,54016.0,54015.0,0.15573]
[1725814688370,0.20639878,54016.0,54015.0,0.15573]
[1725814688598,0.05929478,54016.0,54015.0,0.15573]
[1725814688842,0.001815,54016.0,54015.0,0.15573]
[1725814689079,0.00332369,54016.0,54015.0,0.15573]
[1725814689573,0.00332369,54016.0,54015.0,0.303837]
[1725814691794,0.00032369,54016.0,54015.0,0.303837]
[1725814692020,0.00332369,54016.0,54015.0,0.15573]
[1725814692477,0.00032369,54016.0,54015.0,0.15573]
[1725814692692,0.00132369,54016.0,54015.0,0.15573]
[1725814692917,0.00332369,54016.0,54015.0,0.15573]
[1725814695255,0.00332369,54016.0,54015.0,0.303837]
[1725814695496,0.00032369,54016.0,54015.0,0.303837]
[1725814695734,0.00232369,54016.0,54015.0,0.303837]
[1725814696203,0.00232369,54016.0,54015.0,0.896265]
[1725814697137,0.00032369,54016.0,54015.0,0.896265]
[1725814697571,0.00032369,54016.0,54015.0,0.898265]
[1725814698045,0.00032369,54016.0,54015.0,0.604051]
[1725814698258,0.00032369,54016.0,54015.0,0.608051]
[1725814698497,0.00032369,54016.0,54015.0,0.604051]
[1725814698743,0.00032369,54016.0,54015.0,0.610051]
[1725814700346,0.14842769,54016.0,54015.0,0.10503]
[1725814700565,0.00032369,54016.0,54015.0,0.10503]
[1725814701232,0.00032369,54016.0,54015.0,0.10103]
[1725814701451,0.05586394,54016.0,54015.0,0.09503]
[1725814701702,0.05586394,54016.0,54015.0,0.09903]
[1725814701939,0.05586394,54016.0,54015.0,0.10503]
[1725814702595,0.05586394,54016.0,54015.0,0.09903]
[1725814702831,0.05586394,54016.0,54015.0,0.10103]
[1725814703541,0.00032369,54016.0,54015.0,0.249137]
[1725814703756,0.0558706,54016.0,54015.0,0.249137]
[1725814703986,0.00032369,54016.0,54015.0,0.249137]
[1725814704239,0.00032369,54016.0,54015.0,0.245137]
[1725814704914,0.0558706,54016.0,54015.0,0.243137]
[1725814705359,0.0558706,54016.0,54015.0,0.246137]
[1725814705551,0.0558706,54016.0,54015.0,0.09803]
[1725814705808,0.0558706,54016.0,54015.0,0.09903]
[1725814706460,0.0558706,54016.0,54015.0,0.09603]
[1725814706954,0.0558706,54016.0,54015.0,0.09903]
[1725814707181,0.0558706,54016.0,54015.0,0.09803]
[1725814707404,0.00032369,54016.0,54015.0,0.09903]
[1725814708088,0.05588186,54016.0,54015.0,0.09903]
[1725814708314,0.00032369,54016.0,54015.0,0.09903]
[1725814709617,0.05588476,54016.0,54015.0,0.09903]
[1725814709842,0.00032369,54016.0,54015.0,0.247137]
[1725814710266,0.05588476,54016.0,54015.0,0.247137]
[1725814710518,0.05588476,54016.0,54015.0,0.09803]
[1725814710519,0.00032369,54016.0,54015.0,0.09803]
[1725814710760,0.05589047,54016.0,54015.0,0.09503]
[1725814711399,0.00032369,54016.0,54015.0,0.09503]
[1725814711957,0.08366054,54016.0,54015.0,0.09503]
[1725814712188,0.00032369,54016.0,54015.0,0.603151]
[1725814712428,0.00032369,54016.0,54015.0,0.899365]
[1725814712666,0.00032369,54016.0,54015.0,1.197579]
[1725814713597,0.00032369,54016.0,54015.0,1.195579]
[1725814713834,0.00032369,54016.0,54015.0,1.197579]
[1725814714287,0.00032369,54016.0,54015.0,1.29408871]
[1725814714519,0.00132369,54016.0,54015.0,1.30208871]
[1725814714984,0.00132369,54016.0,54015.0,1.30008871]
[1725814715434,0.00032369,54016.0,54015.0,1.8130551]
[1725814715679,0.00032369,54016.0,54015.0,1.9050551]
[1725814715898,0.05638427,54033.0,54032.0,0.7523]
[1725814715899,0.000814,54033.0,54032.0,0.7523]
[1725814716107,0.000814,54033.0,54032.0,0.8964]
[1725814718372,0.001814,54033.0,54032.0,0.9094]
[1725814718590,0.001814,54033.0,54032.0,0.9034]
[1725814718805,0.000814,54033.0,54032.0,0.8964]
[1725814719009,0.000814,54033.0,54032.0,0.9064]
[1725814719888,0.05543731,54043.0,54039.0,0.01]
[1725814720093,0.05543731,54043.0,54042.0,0.002]
[1725814720228,0.07843731,54043.0,54042.0,0.002]
[1725814720437,0.20346731,54043.0,54042.0,0.002]
[1725814720645,0.24803,54043.0,54042.0,0.002]
[1725814721038,0.104,54043.0,54042.0,0.002]
[1725814721642,0.24803,54043.0,54042.0,0.002]
[1725814721864,0.25003,54043.0,54042.0,0.002]
[1725814722112,0.25403,54043.0,54042.0,0.002]
[1725814724117,0.25403,54043.0,54041.0,0.012]
[1725814724336,0.148037,54041.0,54039.0,0.01]
[1725814724555,0.254032,54043.0,54041.0,0.01]
[1725814724794,0.1,54042.0,54041.0,0.01]
[1725814725904,0.0602,54041.0,54039.0,0.01]
[1725814726127,0.208236,54041.0,54040.0,0.01]
[1725814726331,0.3763569,54041.0,54040.0,0.01]
[1725814726533,0.3763569,54041.0,54040.0,0.012]
[1725814726973,0.2283209,54041.0,54040.0,0.012]
[1725814727263,0.1681209,54041.0,54040.0,0.012]
[1725814728126,0.1691209,54041.0,54040.0,0.012]
[1725814729402,0.1711209,54041.0,54040.0,0.012]
[1725814729588,0.1691209,54041.0,54040.0,0.012]
[1725814729754,0.1681209,54041.0,54040.0,0.012]
[1725814730174,0.1729349,54041.0,54040.0,0.012]
[1725814730937,0.004814,54041.0,54040.0,0.012]
[1725814731153,0.000814,54041.0,54040.0,0.0919]
[1725814731624,0.001814,54041.0,54040.0,0.0919]
[1725814732539,0.003814,54041.0,54040.0,0.0919]
[1725814732746,0.001814,54041.0,54040.0,0.0919]
[1725814733389,0.000814,54041.0,54040.0,0.0919]
[1725814733568,0.001814,54041.0,54040.0,0.0919]
[1725814734199,0.000814,54041.0,54040.0,0.0919]
[1725814734418,0.001814,54041.0,54040.0,0.0919]
[1725814734628,0.211349,54041.0,54040.0,0.01]
[1725814734837,0.211349,54041.0,54040.0,0.012]
[1725814735275,0.211349,54041.0,54040.0,0.01]
[1725814736562,0.211349,54041.0,54040.0,0.012]
[1725814737164,0.211349,54041.0,54035.0,0.1373]
[1725814737165,0.2314349,54041.0,54035.0,0.1473]
[1725814737384,0.2314349,54041.0,54034.0,0.002]
[1725814737385,0.148052,54035.0,54034.0,0.002]
[1725814738146,0.23773516,54037.0,54034.0,0.002]
[1725814738372,0.148049,54036.0,54034.0,0.002]
[1725814739241,0.148052,54035.0,54034.0,0.002]
[1725814739657,0.150052,54035.0,54034.0,0.002]
[1725814740088,0.148052,54035.0,54034.0,0.002]
[1725814740307,0.151052,54035.0,54034.0,0.002]
[1725814740992,0.148052,54035.0,54034.0,0.002]
[1725814741215,0.48723349,54040.0,54039.0,0.002]
[1725814741459,0.93134749,54040.0,54039.0,0.002]
[1725814742379,0.296082,54039.0,54037.0,0.002]
[1725814742591,0.023,54038.0,54037.0,0.002]
[1725814743228,0.023,54038.0,54037.0,0.003628]
[1725814743436,0.46713,54038.0,54037.0,0.003628]
[1725814743871,0.148043,54038.0,54037.0,0.063828]
[1725814744084,0.148043,54038.0,54037.0,0.145128]
[1725814744991,0.153043,54038.0,54037.0,0.145128]
[1725814745426,0.148043,54038.0,54037.0,0.145128]
[1725814745648,0.148043,54038.0,54037.0,0.147128]
[1725814747620,0.444117,54040.0,54039.0,0.002]
[1725814747849,0.467117,54040.0,54039.0,0.002]
[1725814748496,0.17104,54040.0,54039.0,0.002]
[1725814749603,0.17104,54040.0,54037.0,0.135128]
[1725814749854,0.171041,54039.0,54037.0,0.135128]
[1725814751407,0.023,54039.0,54037.0,0.135128]
[1725814751622,0.148041,54039.0,54037.0,0.135128]
[1725814751835,0.001,54039.0,54032.0,0.01]
[1725814752102,0.001,54039.0,54035.0,0.01]
[1725814752103,0.14805,54036.0,54035.0,0.01]
[1725814752776,0.14805,54036.0,54032.0,0.01]
[1725814752974,0.14805,54036.0,54032.0,0.158059]
[1725814754145,0.212452,54035.0,54031.0,0.01]
[1725814754383,0.0644,54035.0,54032.0,0.14806]
[1725814754842,0.11974318,54035.0,54032.0,0.15006]
[1725814755293,0.11985642,54035.0,54032.0,0.14806]
[1725814755818,0.05545642,54034.0,54032.0,0.14806]
[1725814756708,0.05545642,54033.0,54032.0,0.002]
[1725814756936,0.05545642,54033.0,54032.0,0.003628]
[1725814757198,0.05545642,54033.0,54032.0,0.001628]
[1725814757443,0.05545642,54033.0,54032.0,0.005628]
[1725814757741,0.08318463,54033.0,54032.0,0.005628]
[1725814757946,0.08318463,54033.0,54032.0,0.004628]
[1725814758130,0.08318463,54033.0,54032.0,0.006628]
[1725814758582,0.23703279,54034.0,54032.0,0.003628]
[1725814758798,0.23759868,54034.0,54032.0,0.003628]
[1725814759014,0.08330481,54033.0,54032.0,0.007628]
[1725814759225,0.08330481,54033.0,54032.0,0.155688]
[1725814759443,0.2514623,54033.0,54032.0,0.007628]
[1725814759663,0.61232949,54033.0,54032.0,0.003628]
[1725814759878,0.73817227,54033.0,54032.0,0.003628]
[1725814760111,0.73817227,54033.0,54032.0,0.006628]
[1725814760324,0.65973408,54033.0,54032.0,0.003628]
[1725814760567,0.36201545,54033.0,54032.0,0.007628]
[1725814760803,0.36201545,54033.0,54032.0,0.005628]
[1725814761012,0.36201545,54033.0,54032.0,0.006628]
[1725814761658,0.36201545,54033.0,54032.0,0.005628]
[1725814761884,0.36201545,54033.0,54032.0,0.002628]
[1725814762095,0.36201545,54033.0,54032.0,0.005628]
[1725814762544,0.36201545,54033.0,54032.0,0.002628]
[1725814763038,0.65813045,54033.0,54032.0,0.005628]
[1725814763279,0.97724545,54033.0,54032.0,0.002628]
[1725814764013,0.97724545,54033.0,54032.0,0.001628]
[1725814764241,0.98324545,54033.0,54032.0,0.002628]
[1725814764684,0.97724545,54033.0,54032.0,0.001628]
[1725814764915,1.27336045,54033.0,54032.0,0.001628]
[1725814765146,1.13864545,54033.0,54032.0,0.001628]
[1725814765331,1.13864545,54033.0,54032.0,0.002628]
[1725814765584,1.13864545,54033.0,54032.0,0.003628]
[1725814765585,1.14864545,54033.0,54032.0,0.003628]
[1725814765808,1.14864545,54033.0,54032.0,0.004628]
[1725814766234,1.14864545,54033.0,54032.0,0.002628]
[1725814766454,1.14864545,54033.0,54032.0,0.003628]
[1725814767188,1.13864545,54033.0,54032.0,0.002628]
[1725814767648,1.14864545,54033.0,54032.0,0.003628]
[1725814768770,1.1756731,54033.0,54032.0,0.003628]
[1725814769740,1.19634549,54033.0,54032.0,0.003628]
[1725814770876,1.10662619,54033.0,54032.0,0.003628]
[1725814771111,1.19634549,54033.0,54032.0,0.003628]
[1725814771827,1.16931784,54033.0,54032.0,0.003628]
[1725814781629,1.10791784,54033.0,54032.0,0.003628]
[1725814782079,1.01819854,54033.0,54032.0,0.003628]
[1725814782325,1.10791784,54033.0,54032.0,0.003628]
[1725814787200,0.148074,54027.0,54026.0,0.008628]
[1725814787425,0.23128873,54027.0,54026.0,0.008628]
[1725814788060,0.148074,54027.0,54026.0,0.008628]
[1725814788330,0.29235954,54027.0,54026.0,0.008628]
[1725814788539,0.29535954,54027.0,54026.0,0.008628]
[1725814790088,0.151074,54027.0,54026.0,0.008628]
[1725814790300,0.29196324,54027.0,54026.0,0.008628]
[1725814790514,0.29696324,54027.0,54026.0,0.008628]
[1725814790741,0.40791621,54027.0,54026.0,0.008628]
[1725814790950,0.40691621,54027.0,54026.0,0.008628]
[1725814791133,0.40891621,54027.0,54026.0,0.008628]
[1725814791550,0.40691621,54027.0,54026.0,0.008628]
[1725814791770,0.40791621,54027.0,54026.0,0.008628]
[1725814791943,0.29596324,54027.0,54026.0,0.008628]
[1725814792164,0.40291621,54027.0,54026.0,0.008628]
[1725814793329,0.40391621,54027.0,54026.0,0.008628]
[1725814793544,0.40491621,54027.0,54026.0,0.008628]
[1725814793964,0.40649152,54027.0,54026.0,0.008628]
[1725814794169,0.40349152,54027.0,54026.0,0.010256]
[1725814794377,0.4045087,54027.0,54026.0,0.010256]
[1725814794572,0.40850816,54027.0,54026.0,0.010256]
[1725814794778,0.40750816,54027.0,54026.0,0.010256]
[1725814794976,0.23233825,54027.0,54026.0,0.010256]
[1725814795187,0.23233806,54027.0,54026.0,0.010256]
[1725814795393,0.4076377,54027.0,54026.0,0.010256]
[1725814795597,0.4066377,54027.0,54026.0,0.074756]
[1725814795901,0.4066377,54027.0,54026.0,0.153856]
[1725814795902,0.2585637,54027.0,54026.0,0.153856]
[1725814796261,0.002,54027.0,54026.0,0.301932]
[1725814796481,0.05751726,54027.0,54026.0,0.301932]
[1725814796701,0.0575186,54027.0,54026.0,0.301932]
[1725814796917,0.001,54027.0,54026.0,0.301932]
[1725814797135,0.08529306,54027.0,54026.0,0.454485]
[1725814797374,0.002,54027.0,54026.0,0.459485]
[1725814797601,0.11102346,54027.0,54026.0,0.459485]
[1725814797804,0.11102346,54027.0,54026.0,0.598085]
[1725814798037,0.11102346,54027.0,54026.0,0.608085]
[1725814798247,0.25914098,54027.0,54026.0,0.602085]
[1725814798484,0.25914098,54027.0,54026.0,0.598085]
[1725814798915,0.25770597,54027.0,54026.0,0.598085]
[1725814799133,0.14660893,54027.0,54026.0,0.306932]
[1725814799348,0.1388713,54028.0,54026.0,0.309932]
[1725814800435,0.28548023,54027.0,54026.0,0.309932]
[1725814800646,0.28548023,54027.0,54026.0,0.306932]
[1725814800865,0.14660893,54027.0,54026.0,0.158856]
[1725814801096,0.59083093,54027.0,54026.0,0.155856]
[1725814801317,0.88697893,54027.0,54026.0,0.082728]
[1725814801569,0.88697893,54027.0,54026.0,0.001628]
[1725814801570,0.90997893,54027.0,54026.0,0.001628]
[1725814801790,0.70355023,54027.0,54026.0,0.071128]
[1725814802012,0.14660893,54027.0,54026.0,0.158856]
[1725814802223,0.14660893,54027.0,54026.0,0.603085]
[1725814802478,0.14660893,54027.0,54026.0,0.598085]
[1725814802898,0.14760893,54027.0,54026.0,0.301932]
[1725814803114,0.14660893,54027.0,54026.0,0.301932]
[1725814803326,0.11113618,54030.0,54029.0,0.448365]
[1725814803557,0.11113618,54030.0,54029.0,0.596433]
[1725814803800,0.11113618,54031.0,54030.0,0.1436]
[1725814804014,0.13893006,54031.0,54030.0,0.291665]
[1725814804253,0.13893006,54031.0,54030.0,0.596424]
[1725814804254,0.28505055,54031.0,54030.0,0.596424]
[1725814804464,0.11196206,54033.0,54032.0,0.1436]
[1725814804687,0.14860653,54033.0,54032.0,0.29166]
[1725814804907,0.2277454,54033.0,54032.0,0.29166]
[1725814805137,0.000814,54033.0,54032.0,0.29166]
[1725814805399,0.08415047,54033.0,54032.0,0.8839]
[1725814805624,0.08415047,54033.0,54032.0,0.893528]
[1725814805625,0.000814,54033.0,54032.0,0.893528]
[1725814805833,0.015814,54033.0,54032.0,0.894528]
[1725814806055,0.015814,54033.0,54032.0,0.893528]
[1725814806291,0.07237354,54033.0,54032.0,0.985728]
[1725814806524,0.016814,54033.0,54032.0,0.985728]
[1725814806760,0.07236028,54033.0,54032.0,0.985728]
[1725814807219,0.05836028,54033.0,54032.0,0.984728]
[1725814807450,0.015814,54033.0,54032.0,0.985728]
[1725814807684,0.013814,54033.0,54032.0,0.984728]
[1725814807917,0.001814,54033.0,54032.0,0.688608]
[1725814808389,0.001814,54033.0,54032.0,0.691608]
[1725814808618,0.2377763,54033.0,54032.0,0.189928]
[1725814808841,0.2377763,54033.0,54032.0,0.185928]
[1725814809064,0.2377763,54033.0,54032.0,0.190928]
[1725814809924,0.29330424,54033.0,54032.0,0.190928]
[1725814810396,0.29330424,54033.0,54032.0,0.094728]
[1725814810618,0.29330424,54033.0,54032.0,0.099728]
[1725814810834,0.29330424,54033.0,54032.0,0.092728]
[1725814811071,0.29330424,54033.0,54032.0,0.100728]
[1725814812420,0.2377763,54033.0,54032.0,0.100728]
[1725814814156,0.0897193,54033.0,54032.0,0.100728]
[1725814814371,0.05552794,54037.0,54035.0,0.155928]
[1725814814591,0.08410592,54039.0,54035.0,0.155928]
[1725814814592,0.05552794,54038.0,54037.0,0.148046]
[1725814814826,0.000814,54039.0,54037.0,0.148046]
[1725814814827,0.05634194,54039.0,54037.0,0.148046]
[1725814815119,0.000814,54039.0,54038.0,0.303971]
[1725814816026,0.000814,54039.0,54038.0,0.600058]
[1725814816931,0.000814,54039.0,54038.0,0.303971]
[1725814817651,0.000814,54039.0,54038.0,0.600058]
[1725814818309,0.001814,54039.0,54038.0,0.600058]
[1725814819021,0.001814,54039.0,54038.0,0.303971]